bitfinex-derivatives/quotes_BTCF0:USTF0_20210111
["timestamp","ask_amount","ask_price","bid_price","bid_amount"]
[1610341535938,0.13632608,35763.0,35762.0,0.13632608]
[1610341537238,0.09549,35769.0,35762.0,0.13632608]
[1610341537439,3.54992562,35772.0,35762.0,0.13632608]
[1610341537838,0.13632608,35770.0,35769.0,0.13632608]
[1610341538039,0.22238608,35770.0,35769.0,0.13632608]
[1610341538838,0.22238608,35770.0,35750.0,0.0841]
[1610341539038,0.22238608,35770.0,35744.0,0.07918]
[1610341539442,0.08606,35770.0,35727.0,0.00249]
[1610341539639,0.08606,35770.0,35697.0,0.00078]
[1610341539839,0.08606,35770.0,35728.0,0.00020387]
[1610341540040,0.08606,35770.0,35713.0,0.13632608]
[1610341540439,0.00034212,35769.0,35714.0,0.00020392]
[1610341541239,3.71929252,35759.0,35714.0,0.00020392]
[1610341541639,3.80637252,35759.0,35714.0,0.00020392]
[1610341541840,0.13632608,35744.0,35739.0,0.13632608]
[1610341542041,0.21390608,35744.0,35714.0,0.00020392]
[1610341542241,0.21390608,35744.0,35707.0,0.09084]
[1610341542442,0.21390608,35744.0,35708.0,0.0843039]
[1610341543045,0.21390608,35744.0,35709.0,0.0002039]
[1610341543944,0.07758,35744.0,35720.0,0.13632608]
[1610341544344,0.07758,35744.0,35721.0,0.0002039]
[1610341544743,1.07758,35744.0,35726.0,1.0]
[1610341545043,1.07758,35744.0,35727.0,0.00020387]
[1610341545245,1.07758,35744.0,35727.0,0.08139387]
[1610341545643,1.07758,35744.0,35728.0,0.00020385]
[1610341546044,1.07758,35744.0,35741.0,0.13632608]
[1610341546445,1.07758,35744.0,35742.0,0.0002039]
[1610341546646,1.0,35743.0,35742.0,0.0002039]
[1610341547046,0.9439,35743.0,35742.0,0.0002039]
[1610341547246,0.906,35743.0,35742.0,0.0002039]
[1610341547446,5.2049,35754.0,35742.0,0.0002039]
[1610341548047,5.2049,35754.0,35749.0,0.13632608]
[1610341548847,5.2049,35754.0,35750.0,0.00020387]
[1610341549448,4.2049,35754.0,35750.0,0.00020387]
[1610341550048,0.13632608,35751.0,35750.0,0.00020387]
[1610341550250,4.2049,35754.0,35750.0,0.00020387]
[1610341551252,4.2049,35754.0,35737.0,0.08686]
[1610341551451,4.2049,35754.0,35738.0,0.00020388]
[1610341551851,4.2049,35754.0,35728.0,0.00020388]
[1610341552053,0.13632608,35743.0,35732.0,0.13632608]
[1610341552451,4.2049,35754.0,35733.0,0.00020388]
[1610341552852,3.25868,35759.0,35733.0,0.00020388]
[1610341553454,4.25868,35759.0,35741.0,1.0]
[1610341553857,4.25868,35759.0,35742.0,0.00020386]
[1610341554055,0.13632608,35758.0,35751.0,0.13632608]
[1610341554656,0.13632608,35758.0,35752.0,0.00020386]
[1610341556057,0.13632608,35753.0,35752.0,0.00020386]
[1610341556856,3.25868,35759.0,35752.0,0.00020386]
[1610341557257,3.25868,35759.0,35736.0,0.00020386]
[1610341557857,0.08708,35759.0,35736.0,0.00020386]
[1610341558058,0.08708,35759.0,35752.0,0.13632608]
[1610341558257,4.5816,35768.0,35752.0,0.13632608]
[1610341558457,4.5816,35768.0,35753.0,0.00020386]
[1610341559858,0.0839,35775.0,35753.0,0.00020386]
[1610341560059,0.0839,35775.0,35769.0,0.13632608]
[1610341560662,0.0839,35775.0,35770.0,0.00020377]
[1610341560861,0.0839,35775.0,35770.0,0.10982377]
[1610341561260,0.0839,35775.0,35770.0,0.19282377]
[1610341561461,0.0785,35775.0,35774.0,1.0]
[1610341561661,0.017,35783.0,35774.0,1.0]
[1610341561861,3.53753613,35802.0,35774.0,1.00020372]
[1610341562060,0.13632608,35797.0,35787.0,0.13632608]
[1610341562261,1.0,35800.0,35787.0,0.13632608]
[1610341563264,1.0,35800.0,35788.0,0.00020369]
[1610341563461,1.0,35795.0,35788.0,0.08480369]
[1610341563862,0.8881,35795.0,35789.0,0.00020369]
[1610341564061,0.8881,35795.0,35793.0,0.13632608]
[1610341564260,0.24507608,35803.0,35793.0,0.13632608]
[1610341564861,0.13632608,35803.0,35794.0,0.00020368]
[1610341565263,3.52661514,35820.0,35794.0,0.00020368]
[1610341565662,3.52661514,35820.0,35791.0,0.00020372]
[1610341565864,0.15906891,35819.0,35792.0,0.084]
[1610341566063,0.15906891,35819.0,35803.0,0.13632608]
[1610341566264,1.0,35813.0,35803.0,0.13632608]
[1610341567464,1.0,35813.0,35804.0,0.00020366]
[1610341568064,1.0,35813.0,35812.0,0.13632608]
[1610341568264,0.05244891,35819.0,35812.0,0.13632608]
[1610341568466,0.05244891,35819.0,35812.0,0.22926971]
[1610341568864,0.05244891,35819.0,35813.0,0.00020363]
[1610341569464,4.891e-05,35819.0,35813.0,0.00020363]
[1610341569663,0.02477499,35820.0,35813.0,0.01]
[1610341569863,3.50886463,35850.0,35813.0,0.01]
[1610341570063,3.50886463,35850.0,35825.0,0.13632608]
[1610341570064,0.13632608,35831.0,35825.0,0.13632608]
[1610341572067,0.13632608,35831.0,35830.0,0.13632608]
[1610341572467,0.08865608,35837.0,35830.0,0.13632608]
[1610341572667,0.08035608,35837.0,35830.0,0.13632608]
[1610341573268,0.08035608,35837.0,35831.0,0.0838]
[1610341573468,0.08035608,35837.0,35831.0,0.01]
[1610341574069,0.08035608,35837.0,35836.0,0.13632608]
[1610341574469,0.00025608,35837.0,35836.0,0.13632608]
[1610341575472,3.48954275,35873.0,35837.0,0.00974392]
[1610341576072,3.48954275,35873.0,35852.0,0.13632608]
[1610341576073,0.13632608,35859.0,35852.0,0.13632608]
[1610341576274,0.24873608,35859.0,35852.0,0.13632608]
[1610341576875,0.11241,35859.0,35852.0,0.13632608]
[1610341578076,0.11241,35859.0,35857.0,0.13632608]
[1610341578274,3.48816795,35880.0,35857.0,0.13632608]
[1610341578878,3.48127448,35896.0,35857.0,0.13632608]
[1610341579476,3.48127448,35896.0,35842.0,0.07652]
[1610341579676,0.07544,35896.0,35843.0,0.2741]
[1610341579877,0.0836,35895.0,35837.0,0.00974392]
[1610341580078,0.13632608,35838.0,35837.0,0.00974392]
[1610341581079,0.23612608,35838.0,35837.0,0.00974392]
[1610341582681,0.23612608,35838.0,35837.0,0.00994741]
[1610341582882,0.0998,35838.0,35837.0,0.00994741]
[1610341583282,0.07084,35846.0,35837.0,0.00994741]
[1610341583881,0.07084,35846.0,35838.0,0.00020347]
[1610341584683,0.07084,35846.0,35843.0,0.13632608]
[1610341585083,0.07084,35846.0,35844.0,0.00020344]
[1610341585484,0.13632608,35849.0,35844.0,0.00020344]
[1610341586287,4.3561,35855.0,35844.0,0.00020344]
[1610341586689,4.3561,35855.0,35849.0,0.13632608]
[1610341587686,4.3561,35855.0,35850.0,0.00020343]
[1610341587886,0.13632608,35868.0,35850.0,0.00020343]
[1610341588087,0.13632608,35868.0,35849.0,0.13632608]
[1610341588286,1.0,35855.0,35849.0,0.13632608]
[1610341588486,1.0,35855.0,35850.0,0.00020342]
[1610341588686,1.0,35855.0,35854.0,0.13632608]
[1610341589089,0.6863,35855.0,35854.0,0.13632608]
[1610341589291,0.24335608,35868.0,35854.0,0.13632608]
[1610341590490,0.24335608,35868.0,35855.0,0.00020341]
[1610341590690,0.24335608,35868.0,35866.0,0.13632608]
[1610341591489,0.24335608,35868.0,35837.0,0.09464392]
[1610341591690,1.0,35867.0,35848.0,1.0]
[1610341592289,1.0,35867.0,35849.0,0.0002034]
[1610341592692,0.13632608,35860.0,35852.0,0.13632608]
[1610341593091,0.13632608,35860.0,35853.0,0.00020342]
[1610341593292,0.13632608,35860.0,35848.0,1.0]
[1610341593493,0.23063608,35860.0,35848.0,1.0]
[1610341593694,6.0,35854.0,35837.0,0.00974392]
[1610341594095,6.0,35854.0,35839.0,0.00020347]
[1610341594496,6.0,35854.0,35838.0,0.00020347]
[1610341594695,0.13632608,35839.0,35838.0,0.00020347]
[1610341595096,0.13632608,35839.0,35837.0,0.00974392]
[1610341595496,0.13632608,35839.0,35832.0,3.1903]
[1610341595695,0.13632608,35839.0,35831.0,0.01]
[1610341596697,0.13632608,35832.0,35790.0,0.13632608]
[1610341596897,0.23839608,35832.0,35790.0,0.13632608]
[1610341597899,0.23839608,35832.0,35799.0,0.0836]
[1610341598301,0.23839608,35832.0,35814.0,0.00020361]
[1610341598703,0.10207,35832.0,35824.0,0.13632608]
[1610341599104,1.0,35829.0,35824.0,0.13632608]
[1610341599305,1.0,35829.0,35825.0,0.00021154]
[1610341599506,0.765,35829.0,35825.0,0.00021154]
[1610341599708,0.07752,35844.0,35825.0,0.00021154]
[1610341599906,0.273,35893.0,35825.0,0.00021154]
[1610341600509,0.3614,35894.0,35825.0,0.27731154]
[1610341600707,0.13632608,35856.0,35850.0,0.13632608]
[1610341602709,0.13632608,35856.0,35855.0,0.13632608]
[1610341603912,1.13632608,35856.0,35855.0,0.13632608]
[1610341606614,1.0,35856.0,35855.0,0.13632608]
[1610341607617,1.0,35856.0,35855.0,0.13653745]
[1610341607917,4.4625,35870.0,35855.0,0.13653745]
[1610341608319,4.4625,35870.0,35856.0,0.00021135]
[1610341608919,0.13632608,35857.0,35856.0,0.00021135]
[1610341609120,0.11639,35869.0,35840.0,0.0956]
[1610341609320,0.11639,35869.0,35841.0,0.00021137]
[1610341609720,0.11639,35869.0,35840.0,0.10192]
[1610341609921,0.11639,35869.0,35841.0,0.00021137]
[1610341610720,0.11639,35869.0,35842.0,0.0838]
[1610341610919,0.11639,35869.0,35868.0,0.13632608]
[1610341612523,0.30469,35872.0,35868.0,0.21882608]
[1610341612719,4.9582,35890.0,35868.0,0.21882608]
[1610341612921,0.2732,35936.0,35889.0,0.13632608]
[1610341612922,1.0,35905.0,35889.0,0.13632608]
[1610341613121,0.13632608,35921.0,35889.0,0.13632608]
[1610341613322,6.92e-06,35912.0,35889.0,0.13632608]
[1610341613920,6.92e-06,35912.0,35886.0,0.09577]
[1610341614122,0.10863692,35912.0,35886.0,0.09577]
[1610341614521,0.10863692,35912.0,35887.0,0.00021121]
[1610341614920,0.13632608,35904.0,35896.0,0.13632608]
[1610341615122,0.23458608,35904.0,35896.0,0.13632608]
[1610341615320,0.09826,35904.0,35896.0,0.13632608]
[1610341616321,0.09826,35904.0,35878.0,0.08783]
[1610341616923,0.13632608,35907.0,35895.0,0.13632608]
[1610341617922,0.13632608,35907.0,35878.0,0.08783]
[1610341618321,0.13632608,35907.0,35879.0,0.00021121]
[1610341618522,0.13632608,35907.0,35879.0,0.07611121]
[1610341618723,0.13632608,35907.0,35879.0,0.0759]
[1610341618922,0.10863692,35912.0,35896.0,0.13632608]
[1610341620325,0.10863692,35912.0,35896.0,0.23109608]
[1610341620923,0.10863692,35912.0,35908.0,0.13632608]
[1610341621324,6.92e-06,35912.0,35908.0,0.13632608]
[1610341621723,6.92e-06,35912.0,35907.0,0.07229]
[1610341622424,6.92e-06,35912.0,35896.0,0.09477]
[1610341623025,6.92e-06,35912.0,35904.0,0.13632608]
[1610341623225,1.0,35909.0,35904.0,0.13632608]
[1610341624925,1.0,35909.0,35908.0,0.13632608]
[1610341625126,6.92e-06,35912.0,35908.0,0.13632608]
[1610341627231,6.92e-06,35912.0,35896.0,0.09477]
[1610341627431,6.92e-06,35912.0,35890.0,3.2045]
[1610341627836,6.92e-06,35912.0,35902.0,4.2963]
[1610341628034,6.92e-06,35912.0,35899.0,0.09055]
[1610341629036,6.92e-06,35912.0,35911.0,0.13632608]
[1610341629437,6.92e-06,35912.0,35911.0,0.23461608]
[1610341633243,1.00000692,35912.0,35911.0,0.23461608]
[1610341636552,1.00000692,35912.0,35911.0,0.09829]
[1610341636753,1.00000692,35912.0,35899.0,0.17375]
[1610341636954,1.00000692,35912.0,35899.0,0.09055]
[1610341637155,6.92e-06,35912.0,35887.0,0.02584]
[1610341637354,6.92e-06,35912.0,35844.0,0.2741]
[1610341637753,6.92e-06,35912.0,35880.0,0.00021123]
[1610341637952,6.92e-06,35912.0,35845.0,0.00021126]
[1610341638154,6.92e-06,35912.0,35846.0,0.0828]
[1610341638352,6.92e-06,35912.0,35846.0,0.15697]
[1610341638554,6.92e-06,35912.0,35847.0,0.0002113]
[1610341639156,6.92e-06,35912.0,35901.0,0.03]
[1610341640058,6.92e-06,35912.0,35867.0,0.07458]
[1610341640659,6.92e-06,35912.0,35868.0,0.00021133]
[1610341641058,0.13632608,35880.0,35873.0,0.13632608]
[1610341643264,1.0,35874.0,35873.0,0.13632608]
[1610341644064,1.0,35874.0,35873.0,0.13653742]
[1610341644665,0.99,35874.0,35873.0,0.13653742]
[1610341645062,5.5721,35888.0,35873.0,0.13653742]
[1610341645662,5.5721,35888.0,35874.0,0.00021128]
[1610341646763,1.0,35888.0,35874.0,0.00021128]
[1610341646963,0.13632608,35898.0,35887.0,0.13632608]
[1610341647563,0.13632608,35898.0,35880.0,0.0752]
[1610341647766,0.22934608,35898.0,35880.0,0.0752]
[1610341648367,0.22934608,35898.0,35874.0,0.01]
[1610341648766,0.22934608,35898.0,35875.0,0.00021131]
[1610341648966,0.13632608,35886.0,35882.0,0.13632608]
[1610341649569,0.09302,35898.0,35882.0,0.13632608]
[1610341651068,0.13632608,35891.0,35882.0,0.13632608]
[1610341652668,0.09302,35898.0,35882.0,0.13632608]
[1610341652868,3.9282,35907.0,35882.0,0.13632608]
[1610341653069,0.13632608,35901.0,35895.0,0.13632608]
[1610341654980,1.13632608,35896.0,35895.0,0.13632608]
[1610341655382,1.13632608,35896.0,35877.0,0.10981]
[1610341655582,1.13632608,35896.0,35874.0,0.01]
[1610341655983,1.13632608,35896.0,35878.0,0.00021128]
[1610341656181,1.13632608,35896.0,35875.0,0.00021128]
[1610341656381,1.08318,35896.0,35874.0,0.01]
[1610341656780,1.08318,35896.0,35876.0,0.0002113]
[1610341656981,0.13632608,35877.0,35875.0,0.0002113]
[1610341657181,0.13632608,35877.0,35874.0,0.01]
[1610341657381,0.13632608,35877.0,35876.0,0.0002113]
[1610341657781,0.13632608,35877.0,35875.0,0.0002113]
[1610341657980,0.13632608,35877.0,35874.0,0.01]
[1610341659083,1.0,35875.0,35874.0,0.01]
[1610341661086,6.0,35875.0,35874.0,0.01]
[1610341662786,6.0,35875.0,35874.0,0.01021659]
[1610341662986,1.0,35876.0,35874.0,0.01021659]
[1610341663185,1.0,35876.0,35874.0,0.14654267]
[1610341663586,1.0,35876.0,35875.0,0.00021657]
[1610341663788,1.0,35876.0,35875.0,0.11198657]
[1610341665189,1.0,35876.0,35875.0,0.11177]
[1610341665389,1.0,35876.0,35875.0,0.11198658]
[1610341665588,1.0,35876.0,35875.0,0.11177]
[1610341665889,1.0,35876.0,35875.0,0.11198658]
[1610341666991,0.13632608,35881.0,35875.0,0.11198658]
[1610341667192,0.99,35876.0,35875.0,0.11198658]
[1610341667591,1.0,35876.0,35875.0,0.11177]
[1610341667791,1.0,35876.0,35875.0,0.11198659]
[1610341669594,6.0,35876.0,35875.0,0.11177]
[1610341669896,6.0,35876.0,35874.0,0.14632608]
[1610341671196,0.13632608,35875.0,35867.0,0.05290608]
[1610341671397,0.13632608,35875.0,35860.0,3.4026]
[1610341671599,0.13632608,35875.0,35874.0,2.0]
[1610341672198,0.13632608,35875.0,35874.0,1.5]
[1610341672399,0.13632608,35875.0,35860.0,3.4026]
[1610341672598,0.13632608,35875.0,35861.0,1.0]
[1610341672799,0.13632608,35875.0,35861.0,1.07880669]
[1610341672999,0.13632608,35875.0,35874.0,0.5]
[1610341673400,0.13632608,35875.0,35874.0,1.0]
[1610341673601,1.13632608,35875.0,35874.0,1.0]
[1610341674002,1.13632608,35875.0,35874.0,2.0]
[1610341675607,6.13632608,35875.0,35874.0,2.0]
[1610341683615,6.13632608,35875.0,35874.0,1.961]
[1610341683816,6.13632608,35875.0,35874.0,1.882]
[1610341684216,6.62492608,35875.0,35874.0,1.824]
[1610341684418,6.62492608,35875.0,35874.0,1.4608]
[1610341684819,6.62492608,35875.0,35874.0,1.9608]
[1610341685417,10.16583532,35875.0,35874.0,1.9608]
[1610341685618,4.16583532,35875.0,35874.0,1.9608]
[1610341686218,4.16583532,35875.0,35874.0,1.5186]
[1610341686420,4.16583532,35875.0,35874.0,0.5186]
[1610341686821,10.16583532,35875.0,35874.0,0.5186]
[1610341687222,10.16583532,35875.0,35874.0,1.0186]
[1610341687424,10.16583532,35875.0,35874.0,0.1665]
[1610341687622,10.16583532,35875.0,35861.0,0.07859]
[1610341687823,4.16583532,35875.0,35874.0,0.5]
[1610341688022,4.16583532,35875.0,35874.0,1.0]
[1610341688222,4.16583532,35875.0,35874.0,0.5]
[1610341688424,4.1661762,35875.0,35862.0,0.5]
[1610341688823,0.00034091,35874.0,35862.0,2.0]
[1610341689024,3.54111852,35865.0,35862.0,1.5]
[1610341689223,3.54111852,35865.0,35863.0,0.5]
[1610341689423,3.54111852,35865.0,35863.0,1.5]
[1610341689823,3.54111852,35865.0,35864.0,1.0]
[1610341690026,3.54111852,35865.0,35864.0,1.5]
[1610341690624,3.54111852,35865.0,35864.0,2.0]
[1610341691226,3.6774446,35865.0,35864.0,2.0]
[1610341692629,0.13632608,35865.0,35864.0,2.0]
[1610341693030,6.13632608,35865.0,35864.0,2.0]
[1610341693228,6.13632608,35865.0,35864.0,1.0]
[1610341693629,6.13666707,35865.0,35864.0,1.0]
[1610341693828,6.77566707,35865.0,35864.0,1.5891]
[1610341694030,6.77566707,35865.0,35864.0,1.4802]
[1610341694230,6.77566707,35865.0,35864.0,0.0881]
[1610341694631,6.77566707,35865.0,35864.0,0.569]
[1610341694832,6.77566707,35865.0,35864.0,0.356]
[1610341695030,6.85896707,35865.0,35819.0,0.09011]
[1610341695235,6.85896707,35865.0,35864.0,0.1392]
[1610341695236,6.83466099,35865.0,35864.0,0.1392]
[1610341695432,0.00034123,35864.0,35810.0,0.10099]
[1610341695833,3.53672827,35834.0,35820.0,0.5]
[1610341696033,3.64065827,35834.0,35820.0,0.5]
[1610341696433,3.64065827,35834.0,35820.0,0.2067]
[1610341696633,3.64065827,35834.0,35821.0,1.0]
[1610341697033,3.64065827,35834.0,35820.0,0.402]
[1610341697235,0.13632608,35821.0,35820.0,0.402]
[1610341697439,0.13632608,35821.0,35810.0,0.10099]
[1610341697637,0.13632608,35821.0,35820.0,1.0]
[1610341697839,3.64065827,35834.0,35820.0,1.0]
[1610341698038,3.64065827,35834.0,35820.0,1.5]
[1610341698238,3.64065827,35834.0,35820.0,0.3887]
[1610341698437,3.64065827,35834.0,35820.0,0.3821]
[1610341698638,3.64065827,35834.0,35820.0,0.8821]
[1610341698839,3.64065827,35834.0,35811.0,0.5]
[1610341699039,3.64065827,35834.0,35821.0,1.0]
[1610341699239,0.13632608,35822.0,35821.0,0.9431]
[1610341699640,0.13632608,35822.0,35821.0,0.9115]
[1610341699840,0.13632608,35822.0,35821.0,0.4115]
[1610341700240,0.13632608,35822.0,35821.0,0.9115]
[1610341700841,0.13632608,35822.0,35821.0,0.8505]
[1610341701041,0.13632608,35822.0,35821.0,0.7235]
[1610341701441,0.13632608,35822.0,35821.0,1.7235]
[1610341702242,0.13632608,35822.0,35821.0,0.7235]
[1610341702641,0.13632608,35822.0,35821.0,1.2235]
[1610341702843,0.13632608,35822.0,35821.0,1.7235]
[1610341703242,4.19822608,35822.0,35821.0,1.7235]
[1610341704543,5.19822608,35822.0,35821.0,1.7235]
[1610341705344,5.19822608,35822.0,35821.0,1.719]
[1610341705946,5.0619,35822.0,35821.0,1.719]
[1610341706146,5.0619,35822.0,35821.0,1.6654]
[1610341706547,10.0619,35822.0,35821.0,1.6654]
[1610341707246,10.19822608,35822.0,35821.0,1.6654]
[1610341708049,10.19822608,35822.0,35821.0,1.6104]
[1610341708348,10.28122608,35822.0,35821.0,1.6104]
[1610341708549,4.28122608,35822.0,35821.0,1.6004]
[1610341708749,4.19822608,35822.0,35821.0,1.6004]
[1610341710050,4.19822608,35822.0,35821.0,1.71418]
[1610341710451,4.19822608,35822.0,35821.0,1.70418]
[1610341712353,4.22822608,35822.0,35821.0,1.70418]
[1610341712754,0.16632608,35822.0,35821.0,1.70418]
[1610341716559,1.16632608,35822.0,35821.0,1.70418]
[1610341718560,0.16632608,35822.0,35821.0,1.70418]
[1610341719863,0.16632608,35822.0,35821.0,1.69418]
[1610341722666,0.16632608,35822.0,35821.0,1.52618]
[1610341722865,0.16632608,35822.0,35821.0,1.48718]
[1610341723066,0.16632608,35822.0,35821.0,1.34918]
[1610341724166,0.16632608,35822.0,35821.0,1.16118]
[1610341724366,0.16632608,35822.0,35821.0,1.0474]
[1610341725166,0.25032608,35822.0,35821.0,0.9374]
[1610341725566,0.25032608,35822.0,35821.0,0.7374]
[1610341725766,0.25032608,35822.0,35821.0,0.3422]
[1610341725971,0.25032608,35822.0,35821.0,0.2223]
[1610341726167,0.25032608,35822.0,35779.0,0.10047]
[1610341726369,0.25032608,35822.0,35821.0,0.4027]
[1610341726567,0.25032608,35822.0,35821.0,0.0336]
[1610341726768,0.25032608,35822.0,35779.0,0.10047]
[1610341726967,0.25032608,35822.0,35780.0,1.0]
[1610341727168,0.01,35812.0,35780.0,1.0]
[1610341727370,0.13632608,35781.0,35780.0,1.0]
[1610341727969,1.13632608,35781.0,35780.0,1.0]
[1610341728973,1.13632608,35781.0,35762.0,1.0]
[1610341729173,1.13632608,35781.0,35780.0,0.5]
[1610341729573,1.13632608,35781.0,35780.0,1.0]
[1610341729974,0.13632608,35781.0,35780.0,1.0]
[1610341730175,0.13632608,35781.0,35780.0,1.5]
[1610341730374,0.13632608,35781.0,35780.0,2.0]
[1610341731377,4.81052608,35781.0,35780.0,2.0]
[1610341732981,4.83982608,35781.0,35780.0,2.0]
[1610341734480,4.83982608,35781.0,35780.0,1.9726]
[1610341735081,4.83982608,35781.0,35780.0,1.9222]
[1610341735684,4.83982608,35781.0,35780.0,1.9195]
[1610341736085,4.83982608,35781.0,35780.0,1.9132]
[1610341736086,4.92342608,35781.0,35780.0,1.9132]
[1610341736288,5.02026608,35781.0,35780.0,1.9132]
[1610341736488,4.93666608,35781.0,35780.0,1.8592]
[1610341738288,4.93666608,35781.0,35780.0,1.8548]
[1610341738489,4.93666608,35781.0,35780.0,1.5477]
[1610341738690,5.01926608,35781.0,35780.0,1.52]
[1610341738892,4.93666608,35781.0,35780.0,1.52]
[1610341739290,4.93666608,35781.0,35780.0,1.5055]
[1610341739491,4.93666608,35781.0,35780.0,1.4974]
[1610341741192,4.93666608,35781.0,35780.0,1.2784]
[1610341741395,4.93666608,35781.0,35780.0,1.2234]
[1610341741892,4.93666608,35781.0,35780.0,1.1369]
[1610341743197,4.93666608,35781.0,35780.0,1.0819]
[1610341743698,4.93666608,35781.0,35780.0,1.0744]
[1610341744099,10.93666608,35781.0,35780.0,0.9401]
[1610341744699,10.93666608,35781.0,35756.0,0.09871]
[1610341744900,10.93666608,35781.0,35780.0,0.861]
[1610341745100,4.93666608,35781.0,35780.0,0.807]
[1610341745303,4.93666608,35781.0,35780.0,1.807]
[1610341745701,4.93666608,35781.0,35780.0,1.7819]
[1610341746102,4.93666608,35781.0,35780.0,1.7431]
[1610341746505,4.93666608,35781.0,35780.0,1.7403]
[1610341749009,4.83982608,35781.0,35780.0,1.7403]
[1610341749409,4.6982,35781.0,35780.0,1.83638]
[1610341749610,3.34094017,35802.0,35780.0,1.83638]
[1610341749809,3.3402547,35809.0,35780.0,1.83638]
[1610341750008,0.01,35812.0,35807.0,0.13632608]
[1610341750209,0.0829,35811.0,35807.0,0.13632608]
[1610341750611,0.01,35812.0,35807.0,0.13632608]
[1610341750809,0.01,35812.0,35807.0,0.24290608]
[1610341751010,0.01,35812.0,35811.0,1.0]
[1610341752011,0.14632608,35812.0,35811.0,1.13632608]
[1610341752412,0.01,35812.0,35811.0,1.13632608]
[1610341753413,0.01,35812.0,35811.0,1.13653544]
[1610341754216,0.01,35812.0,35811.0,1.00020936]
[1610341754413,0.03,35822.0,35811.0,1.08470936]
[1610341754614,0.03,35822.0,35811.0,0.08470936]
[1610341755013,0.028,35822.0,35812.0,0.00020926]
[1610341755215,3.5127193,35870.0,35812.0,0.00020926]
[1610341755415,3.51053574,35875.0,35812.0,0.00020926]
[1610341755614,3.51053574,35875.0,35812.0,0.08430926]
[1610341755815,3.5094843,35882.0,35812.0,0.08430926]
[1610341756015,3.5094843,35882.0,35876.0,0.13632608]
[1610341756214,3.84370499,35914.0,35876.0,0.13632608]
[1610341756215,3.50948693,35886.0,35876.0,0.13632608]
[1610341756818,3.50432629,35900.0,35876.0,0.13632608]
[1610341757618,3.49846288,35907.0,35876.0,0.13632608]
[1610341758018,0.13632608,35898.0,35896.0,0.13632608]
[1610341758218,0.13632608,35898.0,35874.0,0.09954]
[1610341758619,0.13632608,35898.0,35875.0,0.0843]
[1610341759221,0.13632608,35898.0,35874.0,0.09954]
[1610341759423,0.13632608,35898.0,35876.0,1.0]
[1610341760022,0.13632608,35898.0,35875.0,1.0]
[1610341760222,0.07773,35905.0,35875.0,1.0]
[1610341760422,0.07773,35905.0,35876.0,0.5]
[1610341760622,0.13632608,35877.0,35876.0,0.5]
[1610341761021,0.13632608,35877.0,35876.0,0.4338]
[1610341761421,0.13632608,35877.0,35876.0,1.0]
[1610341761622,0.13632608,35877.0,35876.0,1.4165]
[1610341763021,0.13632608,35877.0,35876.0,1.4132]
[1610341763223,0.13632608,35877.0,35876.0,1.9132]
[1610341767326,0.13632608,35877.0,35876.0,1.4132]
[1610341767725,1.0,35879.0,35876.0,1.4132]
[1610341767930,1.0,35879.0,35876.0,1.9132]
[1610341768126,1.0,35879.0,35877.0,1.5]
[1610341768327,1.0,35879.0,35877.0,1.6153]
[1610341768727,0.13632608,35893.0,35878.0,7.63632608]
[1610341769126,0.13632608,35893.0,35879.0,0.5]
[1610341769326,0.13632608,35893.0,35879.0,1.5]
[1610341769728,0.13632608,35893.0,35879.0,1.0]
[1610341769928,0.13632608,35893.0,35880.0,0.5]
[1610341770429,0.07773,35905.0,35880.0,1.5]
[1610341770729,3.4122,35916.0,35880.0,1.5]
[1610341770930,0.13632608,35881.0,35880.0,0.5]
[1610341771729,0.13632608,35881.0,35879.0,0.5]
[1610341771928,0.13632608,35881.0,35880.0,0.5]
[1610341772130,0.13632608,35881.0,35880.0,1.5]
[1610341772930,0.13632608,35881.0,35880.0,0.5]
[1610341773131,0.13632608,35881.0,35880.0,1.0]
[1610341773330,0.13632608,35881.0,35880.0,0.5]
[1610341773532,0.13632608,35881.0,35880.0,1.5]
[1610341773931,0.13632608,35881.0,35880.0,2.0]
[1610341774332,0.08019,35898.0,35880.0,2.0]
[1610341774731,0.08019,35898.0,35879.0,0.09697]
[1610341774732,3.4122,35916.0,35897.0,1.0]
[1610341774933,0.13632608,35898.0,35897.0,1.0]
[1610341775532,0.13632608,35898.0,35897.0,3.0]
[1610341775733,0.13632608,35898.0,35897.0,3.00020899]
[1610341776335,0.13632608,35898.0,35897.0,3.0]
[1610341776734,0.21274608,35898.0,35897.0,2.0]
[1610341777833,0.20274608,35898.0,35897.0,2.0]
[1610341778634,4.76854608,35898.0,35897.0,2.0]
[1610341778834,5.76854608,35898.0,35897.0,2.0]
[1610341779836,5.75854608,35898.0,35897.0,2.0]
[1610341780636,4.75854608,35898.0,35897.0,2.0]
[1610341781538,4.75854608,35898.0,35897.0,2.00021597]
[1610341781739,4.74854608,35898.0,35897.0,2.0]
[1610341782140,4.74854608,35898.0,35897.0,2.00021596]
[1610341782340,4.64222,35898.0,35897.0,2.00021596]
[1610341782541,4.62222,35898.0,35897.0,2.00021596]
[1610341783141,4.75854608,35898.0,35897.0,2.13654204]
[1610341783942,4.75854608,35898.0,35897.0,2.0257445]
[1610341784742,4.75854608,35898.0,35897.0,3.0257445]
[1610341786546,4.75854608,35898.0,35897.0,3.0]
[1610341786745,4.75854608,35898.0,35897.0,2.0]
[1610341787948,0.19274608,35898.0,35897.0,2.0]
[1610341788346,0.13632608,35898.0,35897.0,2.0]
[1610341788647,1.13632608,35898.0,35897.0,2.0]
[1610341789447,1.13632608,35898.0,35897.0,2.07749]
[1610341790649,0.13632608,35898.0,35897.0,3.07749]
[1610341790850,0.13632608,35898.0,35897.0,3.10323777]
[1610341794755,0.13632608,35898.0,35897.0,2.10323777]
[1610341797860,0.13632608,35898.0,35897.0,2.18733777]
[1610341798063,0.13632608,35898.0,35897.0,2.10323777]
[1610341799661,3.6586,35921.0,35897.0,2.10323777]
[1610341800062,3.6586,35921.0,35898.0,0.02574128]
[1610341800263,3.6586,35921.0,35898.0,1.02574128]
[1610341800763,3.6586,35921.0,35911.0,1.0]
[1610341800963,3.6586,35921.0,35911.0,1.08763]
[1610341801163,3.6586,35921.0,35911.0,1.08784558]
[1610341801364,0.13632608,35913.0,35911.0,2.08784558]